fUST/lending_fUST_20240718
["ID","MTS","AMOUNT","RATE_DAILY","PERIOD"]
[332492694,1721269847039,-906.470842,0.0002189,2]
[332492695,1721269847048,-906.470842,0.0002189,2]
[332492696,1721269847058,-189.66895956,0.0002189,2]
[332492697,1721269847136,-716.80188244,0.0002189,2]
[332492698,1721269847145,-906.470842,0.0002189,2]
[332492699,1721269847155,-906.470842,0.0002189,2]
[332492700,1721269847164,-906.470842,0.0002189,2]
[332492701,1721269847173,-906.470842,0.0002189,2]
[332492702,1721269847185,-906.470842,0.0002189,2]
[332492703,1721269847194,-906.470842,0.0002189,2]
[332492704,1721269847203,-906.470842,0.0002189,2]
[332492705,1721269847213,-906.470842,0.0002189,2]
[332492706,1721269847223,-906.470842,0.0002189,2]
[332492707,1721269847232,-177.99200495,0.0002189,2]
[332492711,1721270863568,327.2869832,9.999e-05,2]
[332492712,1721270949351,346.06073821,9.999e-05,2]
[332492713,1721270985333,346.06073821,0.0001212,2]
[332492714,1721271027325,346.06073821,0.0001212,2]
[332492766,1721271039143,-1237.6352387,0.00018899,2]
[332492767,1721271039156,-409.83352389,0.000189,2]
[332492768,1721271039166,-210.514573,0.00019392,2]
[332492769,1721271039176,-643.26503334,0.00021,2]
[332492770,1721271039186,-549.881914,0.00021096,2]
[332492771,1721271039195,-153.0,0.00021452,2]
[332492773,1721271039206,-155.39016199,0.00021799,2]
[332492774,1721271039216,-1650.49436908,0.000218,3]
[332492811,1721271047020,-1249.49263092,0.000218,3]
[332492812,1721271047030,-2368.88,0.000218,3]
[332492813,1721271047041,-1407.0,0.00021802,2]
[332492814,1721271047051,-150.995,0.00021802,2]
[332492815,1721271047060,-1190.22853423,0.0002189,2]
[332492816,1721271047069,-2715.40574191,0.0002189,2]
[332492817,1721271104332,314.50017626,0.00014691,2]
[332492821,1721272126463,434.82719992,9.999e-05,2]
[332492822,1721272136114,1000.0,0.00025,120]
[332492823,1721272150357,155.30140425,9.999e-05,2]
[332492824,1721272188863,202.78437057,9.999e-05,2]
[332492932,1721272240126,-151.39247591,0.0001969,2]
[332492933,1721272240136,-268.756223,0.00020549,2]
[332492935,1721272240146,-153.014771,0.00020549,2]
[332492937,1721272240155,-167.692836,0.00020549,2]
[332492939,1721272240164,-161.015682,0.00020549,2]
[332492941,1721272240174,-161.015682,0.00020891,2]
[332492943,1721272240183,-153.014771,0.00021063,2]
[332492945,1721272240193,-167.692836,0.00021063,2]
[332492947,1721272240203,-153.0,0.00021078,2]
[332492948,1721272240212,-522.387818,0.00021096,2]
[332492949,1721272240222,-1742.0,0.000212,2]
[332492950,1721272240231,-241.0,0.000212,2]
[332492951,1721272240240,-153.0,0.000212,2]
[332492952,1721272240250,-161.015682,0.00021234,2]
[332492953,1721272240260,-1117.21611853,0.00021476,2]
[332492954,1721272240269,-5459.69313261,0.000215,5]
[332492955,1721272240279,-73739.2208863,0.000215,2]
[332492956,1721272240288,-153.014771,0.00021576,2]
[332492957,1721272240297,-167.692836,0.00021576,2]
[332492958,1721272240306,-161.015682,0.00021576,2]
[332492959,1721272240315,-232.8315038,0.00021671,2]
[332492960,1721272240324,-151.0,0.00021771,2]
[332492961,1721272240334,-151.0,0.00021771,2]
[332492962,1721272240343,-374.0,0.000218,2]
[332492963,1721272240356,-500.0,0.00021889,2]
[332492964,1721272240366,-500.0,0.00021889,2]
[332492965,1721272240376,-500.0,0.00021889,2]
[332492966,1721272240385,-500.0,0.00021889,2]
[332492967,1721272240396,-549.75218444,0.00021889,2]
[332492968,1721272240405,-500.0,0.00021889,2]
[332492969,1721272240414,-500.0,0.00021889,2]
[332492970,1721272240423,-500.0,0.00021889,2]
[332492971,1721272240433,-500.0,0.00021889,2]
[332492972,1721272240442,-500.0,0.00021889,2]
[332492973,1721272240451,-500.0,0.00021889,2]
[332492974,1721272240460,-500.0,0.00021889,2]
[332492975,1721272240470,-4279.09142939,0.0002189,2]
[332492976,1721272240479,-21119.8875884,0.0002189,3]
[332492977,1721272240488,-4291.58154469,0.000219,2]
[332492978,1721272240498,-748.0,0.000219,2]
[332492979,1721272240507,-748.0,0.000219,2]
[332492980,1721272240516,-748.0,0.000219,2]
[332492981,1721272240528,-150.112233,0.000219,3]
[332492982,1721272240538,-150.112233,0.000219,5]
[332492983,1721272240547,-150.112233,0.000219,2]
[332492984,1721272240557,-150.112233,0.000219,3]
[332492985,1721272240567,-150.112233,0.000219,5]
[332492986,1721272240576,-150.112233,0.000219,4]
[332492987,1721272240586,-150.112233,0.000219,2]
[332492988,1721272240595,-150.112233,0.000219,2]
[332492989,1721272240604,-150.112233,0.000219,5]
[332492990,1721272240614,-150.112233,0.000219,5]
[332492991,1721272240623,-150.112233,0.000219,3]
[332492992,1721272240632,-150.112233,0.000219,5]
[332492993,1721272240643,-150.112233,0.000219,2]
[332492994,1721272240653,-150.112233,0.000219,3]
[332492995,1721272240663,-150.112233,0.000219,4]
[332492996,1721272240672,-206.4665977,0.000219,2]
[332492997,1721272240682,-306.0,0.000219,2]
[332492998,1721272240691,-3000.0,0.000219,2]
[332492999,1721272240701,-314.736918,0.000219,9]
[332493000,1721272240711,-154.2359707,0.000219,2]
[332493001,1721272240721,-306.0,0.000219,2]
[332493002,1721272240731,-206.4665977,0.000219,2]
[332493003,1721272240741,-306.0,0.000219,2]
[332493004,1721272240750,-153.0,0.000219,2]
[332493005,1721272240760,-1003.391642,0.000219,2]
[332493006,1721272240769,-669.83681004,0.00021905,2]
[332493007,1721272240779,-500.0,0.00021906,2]
[332493008,1721272240788,-186.65144073,0.00021906,2]
[332493009,1721272240798,-325.03476334,0.00021906,2]
[332493010,1721272240807,-500.0,0.00021906,2]
[332493011,1721272240817,-500.0,0.00021906,2]
[332493012,1721272240826,-500.0,0.00021906,2]
[332493013,1721272240836,-500.0,0.00021906,2]
[332493014,1721272240845,-605.52299024,0.00021906,2]
[332493015,1721272240855,-500.0,0.00021906,2]
[332493016,1721272240864,-500.0,0.00021906,2]
[332493017,1721272240873,-500.0,0.00021906,2]
[332493018,1721272240883,-500.0,0.00021906,2]
[332493019,1721272240893,-500.0,0.00021906,2]
[332493020,1721272240902,-503.73101566,0.00021906,2]
[332493021,1721272240912,-3484.47636551,0.00021907,3]
[332493022,1721272241426,346.06073821,0.0001212,2]
[332493101,1721272333287,669.83681004,0.00014691,2]
[332493102,1721272633531,731.53540631,9.999e-05,2]
[332493103,1721272656401,150.80395486,0.00021636,30]
[332493104,1721272708793,810.84218633,9.999e-05,2]
[332493105,1721272795648,346.06073821,9.999e-05,2]
[332493107,1721272999046,5000.0,0.00016,2]
[332493108,1721273245831,803.36733613,9.999e-05,2]
[332493109,1721273357599,5145.91692192,9.999e-05,2]
[332493194,1721273440597,-273.22234926,0.000189,2]
[332493195,1721273440607,-167.692837,0.00020549,2]
[332493198,1721273440616,-157.015227,0.00020549,2]
[332493199,1721273440626,-162.18,0.000209,7]
[332493201,1721273440636,-621.16325167,0.00020947,2]
[332493202,1721273440645,-6994.4971713,0.00021,2]
[332493203,1721273440655,-10492.00678792,0.00021,2]
[332493204,1721273440664,-496.268427,0.00021096,2]
[332493205,1721273440673,-1626.0,0.000212,2]
[332493206,1721273440682,-153.0,0.000212,2]
[332493207,1721273440691,-153.0,0.000212,2]
[332493208,1721273440701,-153.0,0.000212,2]
[332493210,1721273440710,-153.0,0.000212,2]
[332493212,1721273440719,-306.0,0.00021204,2]
[332493213,1721273440728,-206.4665977,0.00021204,2]
[332493214,1721273440737,-412.9331954,0.00021204,2]
[332493215,1721273440746,-153.0,0.0002137,2]
[332493216,1721273440756,-153.0,0.0002137,2]
[332493217,1721273440765,-306.0,0.0002137,2]
[332493218,1721273440774,-206.4665977,0.0002137,2]
[332493219,1721273440783,-153.0,0.0002137,2]
[332493220,1721273440792,-154.2359707,0.0002137,2]
[332493221,1721273440801,-153.0,0.0002137,2]
[332493222,1721273440811,-153.0,0.0002137,2]
[332493223,1721273440820,-157.015227,0.00021576,2]
[332493224,1721273440829,-232.8315038,0.00021686,2]
[332493225,1721273440838,-977.56410374,0.000218,2]
[332493226,1721273440847,-507.65,0.00021813,2]
[332493227,1721273440856,-275.58501155,0.00021817,3]
[332493228,1721273440865,-150.112233,0.000219,4]
[332493229,1721273440875,-150.112233,0.000219,2]
[332493230,1721273440885,-150.112233,0.000219,3]
[332493231,1721273440895,-150.112233,0.000219,2]
[332493232,1721273440904,-150.112233,0.000219,3]
[332493233,1721273440914,-150.112233,0.000219,2]
[332493234,1721273440923,-150.112233,0.000219,5]
[332493235,1721273440932,-150.112233,0.000219,5]
[332493236,1721273440942,-314.736918,0.000219,9]
[332493237,1721273440951,-374.0,0.000219,2]
[332493238,1721273440961,-748.0,0.000219,2]
[332493239,1721273440970,-748.0,0.000219,2]
[332493240,1721273440979,-748.0,0.000219,2]
[332493241,1721273440989,-150.112233,0.000219,3]
[332493242,1721273440998,-150.112233,0.000219,2]
[332493243,1721273441007,-150.112233,0.000219,5]
[332493244,1721273441016,-150.112233,0.000219,2]
[332493245,1721273441025,-150.112233,0.000219,4]
[332493246,1721273441035,-150.112233,0.000219,5]
[332493247,1721273441045,-3000.0,0.000219,2]
[332493248,1721273441054,-150.112233,0.000219,2]
[332493249,1721273441064,-1003.391642,0.000219,2]
[332493250,1721273441073,-500.0,0.00021906,2]
[332493251,1721273441082,-186.65144073,0.00021906,2]
[332493252,1721273441091,-325.03476334,0.00021906,2]
[332493253,1721273441100,-500.0,0.00021906,2]
[332493254,1721273441110,-500.0,0.00021906,2]
[332493255,1721273441120,-605.52299024,0.00021906,2]
[332493256,1721273441130,-500.0,0.00021906,2]
[332493257,1721273441140,-500.0,0.00021906,2]
[332493258,1721273441149,-500.0,0.00021906,2]
[332493259,1721273441159,-503.73101566,0.00021906,2]
[332493260,1721273441168,-500.0,0.00021906,2]
[332493261,1721273441177,-500.0,0.00021906,2]
[332493262,1721273441187,-500.0,0.00021906,2]
[332493263,1721273441197,-500.0,0.00021906,2]
[332493264,1721273441206,-500.0,0.00021906,2]
[332493265,1721273441216,-500.0,0.00021906,2]
[332493266,1721273441225,-500.0,0.00021906,2]
[332493267,1721273441234,-500.0,0.00021906,2]
[332493268,1721273441244,-500.0,0.00021906,2]
[332493269,1721273441254,-500.0,0.00021906,2]
[332493270,1721273441264,-500.0,0.00021906,2]
[332493271,1721273441273,-500.0,0.00021906,2]
[332493272,1721273441283,-500.0,0.00021906,2]
[332493273,1721273441292,-549.75218444,0.00021906,2]
[332493274,1721273441301,-500.0,0.00021906,2]
[332493275,1721273441311,-500.0,0.00021906,2]
[332493276,1721273441320,-2729.84656631,0.00021907,5]
[332493277,1721273441329,-7659.95687188,0.00021907,3]
[332493367,1721274570779,-150.0,0.00019807,2]
[332493370,1721274570809,-176.45148744,0.00020243,2]
[332493551,1721274638421,-223.22234926,0.000189,2]
[332493552,1721274638432,-218.0,0.00020243,2]
[332493553,1721274638443,-10266.25396278,0.00020243,2]
[332493554,1721274638476,-1920.08282415,0.00020243,2]
[332493555,1721274638487,-1887.83616335,0.00020244,2]
[332493556,1721274638533,-11477.28799954,0.00020244,2]
[332493749,1721274641003,-33.67555281,0.00020244,2]
[332493751,1721274641012,-264.6,0.00020471,2]
[332493753,1721274641023,-157.015227,0.00020549,2]
[332493755,1721274641034,-157.015227,0.00020549,2]
[332493758,1721274641044,-167.692837,0.00020549,2]
[332493760,1721274641056,-264.6,0.00020602,2]
[332493762,1721274641066,-264.6,0.00020734,2]
[332493764,1721274641077,-264.6,0.00020865,2]
[332493766,1721274641087,-282.4238951,0.00020878,2]
[332493769,1721274641099,-162.18,0.00020907,7]
[332493771,1721274641109,-264.6,0.00020997,2]
[332493773,1721274641118,-600.0,0.0002104,2]
[332493775,1721274641128,-516.715761,0.00021096,2]
[332493777,1721274641139,-306.0,0.00021096,2]
[332493779,1721274641149,-307.2359707,0.00021096,2]
[332493781,1721274641159,-153.0,0.00021096,2]
[332493783,1721274641170,-206.5056545,0.00021096,2]
[332493785,1721274641180,-206.5056545,0.00021096,2]
[332493787,1721274641191,-306.0,0.00021096,2]
[332493789,1721274641200,-153.0,0.00021096,2]
[332493791,1721274641211,-206.5056545,0.00021096,2]
[332493794,1721274641220,-306.0,0.00021096,2]
[332493796,1721274641229,-206.3494273,0.00021096,2]
[332493798,1721274641238,-153.0,0.00021096,2]
[332493799,1721274641249,-264.6,0.00021128,2]
[332493802,1721274641260,-153.0,0.00021151,2]
[332493804,1721274641270,-293.7070141,0.00021178,2]
[332493806,1721274641280,-293.7070141,0.00021178,2]
[332493808,1721274641291,-293.7070141,0.00021178,2]
[332493810,1721274641302,-293.7070141,0.00021178,2]
[332493812,1721274641312,-293.7070141,0.00021178,2]
[332493815,1721274641322,-293.7070141,0.00021178,2]
[332493817,1721274641332,-293.7070141,0.00021178,2]
[332493819,1721274641342,-1742.0,0.000212,2]
[332493821,1721274641352,-412.9331954,0.00021204,2]
[332493823,1721274641363,-206.4665977,0.00021204,2]
[332493825,1721274641374,-206.4665977,0.00021204,2]
[332493827,1721274641387,-206.4665977,0.00021204,2]
[332493829,1721274641396,-206.4665977,0.00021204,2]
[332493831,1721274641405,-409.564551,0.00021204,2]
[332493833,1721274641414,-412.9331954,0.00021214,2]
[332493835,1721274641423,-412.9331954,0.00021214,2]
[332493837,1721274641432,-747.86784003,0.00021259,2]
[332493839,1721274641441,-264.6,0.0002126,2]
[332493841,1721274641450,-151.10300864,0.00021329,2]
[332493843,1721274641460,-264.6,0.00021391,2]
[332493845,1721274641469,-264.6,0.00021523,2]
[332493847,1721274641479,-357.11741279,0.00021554,2]
[332493849,1721274641488,-264.6,0.00021654,2]
[332493851,1721274641497,-232.8315038,0.00021686,2]
[332493853,1721274641506,-264.6,0.00021786,2]
[332493855,1721274641516,-151.0,0.00021786,2]
[332493857,1721274641525,-977.56410374,0.00021797,2]
[332493859,1721274641536,-507.65,0.00021812,2]
[332493861,1721274641545,-275.58501155,0.00021817,3]
[332493863,1721274641558,-151.0,0.00021897,2]
[332493866,1721274641568,-151.0,0.00021897,2]
[332493868,1721274641577,-151.0,0.00021897,2]
[332493870,1721274641586,-151.0,0.00021897,2]
[332493872,1721274641597,-151.0,0.00021897,2]
[332493874,1721274641607,-151.0,0.00021897,2]
[332493876,1721274641616,-151.870964,0.00021897,2]
[332493878,1721274641625,-167.886151,0.00021897,2]
[332493880,1721274641637,-167.886151,0.00021897,2]
[332493882,1721274641646,-188.899087,0.00021897,2]
[332493884,1721274641655,-151.0,0.00021897,2]
[332493886,1721274641665,-151.0,0.00021897,2]
[332493888,1721274641675,-151.0,0.00021897,2]
[332493890,1721274641684,-151.0,0.00021897,2]
[332493892,1721274641694,-150.112233,0.000219,2]
[332493894,1721274641703,-150.112233,0.000219,4]
[332493896,1721274641715,-150.112233,0.000219,4]
[332493898,1721274641725,-150.112233,0.000219,5]
[332493900,1721274641734,-150.112233,0.000219,4]
[332493902,1721274641743,-150.112233,0.000219,2]
[332493904,1721274641752,-150.112233,0.000219,5]
[332493906,1721274641762,-150.112233,0.000219,2]
[332493908,1721274641772,-150.112233,0.000219,4]
[332493910,1721274641782,-150.112233,0.000219,3]
[332493912,1721274641791,-314.736918,0.000219,9]
[332493914,1721274641801,-374.0,0.000219,2]
[332493916,1721274641813,-748.0,0.000219,2]
[332493919,1721274641824,-748.0,0.000219,2]
[332493921,1721274641834,-748.0,0.000219,2]
[332493923,1721274641843,-3000.0,0.000219,2]
[332493925,1721274641854,-150.112233,0.000219,5]
[332493927,1721274641864,-150.112233,0.000219,2]
[332493948,1721274642050,-150.112233,0.000219,4]
[332493950,1721274642060,-150.112233,0.000219,5]
[332493951,1721274642070,-150.112233,0.000219,5]
[332493953,1721274642079,-1003.391642,0.000219,2]
[332493955,1721274642088,-2729.84656631,0.00021906,5]
[332493956,1721274642097,-500.0,0.00021906,2]
[332493957,1721274642106,-500.0,0.00021906,2]
[332493958,1721274642115,-186.65144073,0.00021906,2]
[332493959,1721274642124,-325.03476334,0.00021906,2]
[332493960,1721274642133,-500.0,0.00021906,2]
[332493961,1721274642142,-500.0,0.00021906,2]
[332493962,1721274642151,-605.52299024,0.00021906,2]
[332493963,1721274642160,-500.0,0.00021906,2]
[332493964,1721274642170,-500.0,0.00021906,2]
[332493965,1721274642179,-500.0,0.00021906,2]
[332493966,1721274642188,-500.0,0.00021906,2]
[332493967,1721274642197,-500.0,0.00021906,2]
[332493968,1721274642206,-500.0,0.00021906,2]
[332493969,1721274642216,-503.73101566,0.00021906,2]
[332493970,1721274642225,-500.0,0.00021906,2]
[332493971,1721274642234,-500.0,0.00021906,2]
[332493972,1721274642243,-500.0,0.00021906,2]
[332493973,1721274642252,-500.0,0.00021906,2]
[332493974,1721274642261,-500.0,0.00021906,2]
[332493975,1721274642270,-500.0,0.00021906,2]
[332493976,1721274642279,-500.0,0.00021906,2]
[332493977,1721274642288,-500.0,0.00021906,2]
[332493978,1721274642297,-500.0,0.00021906,2]
[332493979,1721274642306,-549.75218444,0.00021906,2]
[332493980,1721274642315,-500.0,0.00021906,2]
[332493982,1721274642325,-500.0,0.00021906,2]
[332493984,1721274642334,-151.0,0.00021906,2]
[332493986,1721274642343,-151.0,0.00021906,2]
[332493988,1721274642354,-151.0,0.00021906,2]
[332493990,1721274642363,-151.0,0.00021906,2]
[332493992,1721274642372,-151.0,0.00021906,2]
[332493994,1721274642382,-151.0,0.00021906,2]
[332493996,1721274642391,-167.886151,0.00021906,2]
[332493997,1721274642401,-167.886151,0.00021906,2]
[332493999,1721274642410,-152.952087,0.00021906,2]
[332494001,1721274642419,-151.0,0.00021906,2]
[332494002,1721274642429,-151.0,0.00021906,2]
[332494004,1721274642438,-151.0,0.00021906,2]
[332494005,1721274642447,-151.0,0.00021906,2]
[332494006,1721274642457,-594.170538,0.00021906,2]
[332494007,1721274642468,-594.170538,0.00021906,2]
[332494008,1721274642478,-154.453907,0.00021906,2]
[332494009,1721274642488,-151.0,0.00021906,2]
[332494010,1721274642500,-263.041652,0.00021906,2]
[332494011,1721274642511,-263.041652,0.00021906,2]
[332494012,1721274642520,-263.041652,0.00021906,2]
[332494013,1721274642530,-263.041652,0.00021906,2]
[332494014,1721274642541,-151.0,0.00021906,2]
[332494015,1721274642551,-151.0,0.00021906,2]
[332494016,1721274642560,-151.0,0.00021906,2]
[332494017,1721274642570,-151.0,0.00021906,2]
[332494018,1721274642579,-151.0,0.00021906,2]
[332494019,1721274642589,-151.0,0.00021906,2]
[332494020,1721274642599,-151.0,0.00021906,2]
[332494021,1721274642608,-151.0,0.00021906,2]
[332494022,1721274642618,-158.680961,0.00021906,2]
[332494023,1721274642627,-158.680961,0.00021906,2]
[332494024,1721274642641,-151.0,0.00021906,2]
[332494025,1721274642650,-229.344186,0.00021906,2]
[332494026,1721274642660,-158.680961,0.00021906,2]
[332494027,1721274642670,-158.680961,0.00021906,2]
[332494028,1721274642681,-269.673754,0.00021906,2]
[332494029,1721274642690,-269.673754,0.00021906,2]
[332494030,1721274642700,-269.673754,0.00021906,2]
[332494031,1721274642710,-269.673754,0.00021906,2]
[332494032,1721274642720,-151.0,0.00021906,2]
[332494033,1721274642730,-167.670778,0.00021906,2]
[332494034,1721274642739,-25274.06882052,0.00021907,3]
[332494102,1721274643416,-206.4665977,0.000207,2]
[332494105,1721274643431,-293.7070141,0.00021178,2]
[332494109,1721274643455,-17549.82696174,0.00021907,3]
[332494401,1721274646426,-7050.0000006,0.00021907,3]
[332499886,1721275285897,290.0,0.00025,120]
[332499904,1721275838560,-300.0,0.00019862,2]
[332499906,1721275838570,-24890.0,0.00019863,2]
[332499908,1721275838580,-158.388258,0.00020293,2]
[332499910,1721275838590,-158.388258,0.00020411,2]
[332499912,1721275838600,-158.388258,0.00020528,2]
[332499915,1721275838610,-158.388258,0.00020646,2]
[332499917,1721275838620,-153.0,0.000207,2]
[332499919,1721275838630,-158.388258,0.00020763,2]
[332499921,1721275838640,-153.0,0.00020778,2]
[332499923,1721275838649,-446.6445841,0.00020778,2]
[332499925,1721275838659,-293.5691494,0.00020778,2]
[332499927,1721275838668,-158.388258,0.00020881,2]
[332499929,1721275838678,-621.16325167,0.00020895,2]
[332499931,1721275838687,-587.0004341,0.00020978,2]
[332499933,1721275838697,-1015.7210581,0.00020996,2]
[332499951,1721275838863,-158.388258,0.00020998,2]
[332499953,1721275838873,-864.971608,0.00021,5]
[332499955,1721275838883,-510.304939,0.00021096,2]
[332499957,1721275838893,-132.86387323,0.00021096,2]
[332499963,1721275840869,-71.47831297,0.00021096,2]
[332499964,1721275840879,-153.0,0.00021096,2]
[332499965,1721275840888,-153.0,0.00021096,2]
[332499966,1721275840898,-158.388258,0.00021116,2]
[332499967,1721275840908,-306.0,0.00021178,2]
[332499968,1721275840917,-153.0,0.00021178,2]
[332499969,1721275840927,-293.7070141,0.00021178,2]
[332499970,1721275840937,-293.7070141,0.00021178,2]
[332499971,1721275840946,-293.7070141,0.00021178,2]
[332499972,1721275840956,-158.388258,0.00021233,2]
[332499973,1721275840965,-151.0,0.00021283,2]
[332499974,1721275840975,-158.388258,0.00021351,2]
[332499975,1721275840984,-151.0,0.00021409,2]
[332499976,1721275840994,-151.0,0.00021536,2]
[332499977,1721275841004,-1015.7210581,0.00021583,2]
[332499978,1721275841015,-238.86649568,0.00021662,2]
[332499979,1721275841028,-151.0,0.00021663,2]
[332499980,1721275841038,-232.8315039,0.00021686,2]
[332499981,1721275841048,-151.0,0.0002179,2]
[332499982,1721275841059,-157.23075393,0.00021896,2]
[332499983,1721275841069,-374.0,0.000219,2]
[332499984,1721275841079,-748.0,0.000219,2]
[332499985,1721275841090,-748.0,0.000219,2]
[332499986,1721275841101,-748.0,0.000219,2]
[332499987,1721275841110,-151.0,0.000219,2]
[332499988,1721275841121,-3000.0,0.000219,2]
[332499989,1721275841132,-151.0,0.000219,2]
[332499990,1721275841142,-219.431632,0.000219,2]
[332499991,1721275841153,-152.952087,0.00021901,2]
[332499992,1721275841164,-151.0,0.00021901,2]
[332499993,1721275841174,-151.0,0.00021901,2]
[332499994,1721275841183,-500.0,0.00021906,2]
[332499995,1721275841192,-500.0,0.00021906,2]
[332499996,1721275841202,-227.52433433,0.00021906,2]
[332499997,1721275841211,-500.0,0.00021906,2]
[332499998,1721275841220,-273.86609317,0.00021906,2]
[332499999,1721275841229,-500.0,0.00021906,2]
[332500000,1721275841239,-502.61171096,0.00021906,2]
[332500001,1721275841247,-500.0,0.00021906,2]
[332500002,1721275841256,-500.0,0.00021906,2]
[332500003,1721275841265,-500.0,0.00021906,2]
[332500004,1721275841274,-500.0,0.00021906,2]
[332500005,1721275841283,-172.19468716,0.00021906,2]
[332500006,1721275841292,-1364.92328315,0.00021907,5]
[332500007,1721275841301,-15262.27085587,0.00021907,3]
[332500206,1721277040879,-237.70957565,0.00019807,2]
[332500207,1721277040888,-300.0,0.00020059,2]
[332500208,1721277040897,-300.0,0.00020059,2]
[332500209,1721277040906,-22750.5307041,0.0002006,2]
[332500210,1721277040916,-158.38826,0.0002014,2]
[332500211,1721277040925,-151.0,0.00020589,2]
[332500212,1721277040935,-158.38826,0.00020664,2]
[332500213,1721277040944,-151.0,0.00020722,2]
[332500214,1721277040953,-151.0,0.00020855,2]
[332500215,1721277040963,-151.0,0.00020987,2]
[332500216,1721277040972,-503.24341,0.00021096,2]
[332500217,1721277040982,-293.7070141,0.00021096,2]
[332500218,1721277040991,-306.0,0.00021096,2]
[332500219,1721277041001,-153.0,0.00021096,2]
[332500220,1721277041011,-293.7070141,0.00021096,2]
[332500221,1721277041020,-293.7070141,0.00021096,2]
[332500222,1721277041029,-151.0,0.0002112,2]
[332500223,1721277041039,-224.478313,0.00021178,2]
[332500224,1721277041049,-153.0,0.00021178,2]
[332500225,1721277041059,-153.0,0.00021178,2]
[332500226,1721277041069,-153.0,0.00021178,2]
[332500227,1721277041079,-153.0,0.00021178,2]
[332500228,1721277041088,-153.0,0.00021178,2]
[332500229,1721277041097,-153.0,0.00021178,2]
[332500230,1721277041106,-153.0,0.00021178,2]
[332500231,1721277041115,-153.0,0.00021178,2]
[332500232,1721277041125,-158.38826,0.00021189,2]
[332500233,1721277041136,-151.0,0.00021253,2]
[332500234,1721277041145,-151.0,0.00021386,2]
[332500235,1721277041154,-151.0,0.00021519,2]
[332500236,1721277041164,-1000.0,0.00021637,2]
[332500237,1721277041173,-1000.0,0.00021639,2]
[332500238,1721277041182,-1000.0,0.00021639,2]
[332500239,1721277041191,-157.23075393,0.00021642,2]
[332500240,1721277041201,-238.86649568,0.00021642,2]
[332500241,1721277041210,-1000.0,0.00021643,2]
[332500242,1721277041220,-30.84354986,0.00021651,2]
[332500281,1721277043890,-153.0,0.00021178,2]
[332500282,1721277043899,-120.15645014,0.00021651,2]
[332500283,1721277043909,-1000.0,0.00021675,2]
[332500284,1721277043918,-1000.0,0.00021677,2]
[332500285,1721277043929,-62.58555,0.00021678,2]
[332500286,1721277043941,-937.41445,0.00021678,2]
[332500287,1721277043950,-297.64555,0.00021678,2]
[332500288,1721277043963,-586.6757247,0.00021678,2]
[332500289,1721277044002,-115.6787253,0.00021678,2]
[332500290,1721277044011,-232.8315039,0.00021686,2]
[332500291,1721277044020,-1000.0,0.00021703,2]
[332500292,1721277044029,-342.44943519,0.00021703,2]
[332500298,1721277046764,-635.99589071,0.00021703,2]
[332500317,1721278231985,-158.47305044,0.00019578,2]
[332500318,1721278231995,-620.05816258,0.00020843,2]
[332500319,1721278232005,-175.310327,0.00021096,2]
[332500320,1721278232015,-478.081239,0.00021096,2]
[332500321,1721278232024,-258.0,0.000211,2]